[Event "Late Titled Tuesday Blitz February 8 2022"]
[White "Myers, Dominique"]
[Black "Petersson, Kjell"]
[WhiteFideId "2041715"]
[BlackFideId "1705148"]
[WhiteElo "1986"]
[BlackElo "2009"]
[Result "0-1"]
[Round "07"]
[TimeControl "180+1"]
[Date "2022.02.09"]
[WhiteClock "0:01:25"]
[BlackClock "0:00:38"]

1. d4 {[%clk 0:02:58]}  f5 {[%clk 0:02:59]} 2. c4 {[%clk 0:02:56]}  Nf6 {[%clk 0:02:59]} 3. Nc3 {[%clk 0:02:57]}  e6 {[%clk 0:02:59]} 4. Nf3 {[%clk 0:02:56]}  Bb4 {[%clk 0:03:00]} 5. g3 {[%clk 0:02:54]}  Bxc3+ {[%clk 0:02:59]} 6. bxc3 {[%clk 0:02:54]}  O-O {[%clk 0:02:59]} 7. Bg2 {[%clk 0:02:55]}  d6 {[%clk 0:02:57]} 8. O-O {[%clk 0:02:55]}  c5 {[%clk 0:02:56]} 9. Ba3 {[%clk 0:02:54]}  Qc7 {[%clk 0:02:42]} 10. Nd2 {[%clk 0:02:49]}  Nbd7 {[%clk 0:02:28]} 11. e4 {[%clk 0:02:49]}  Rb8 {[%clk 0:02:21]} 12. exf5 {[%clk 0:02:40]}  exf5 {[%clk 0:02:21]} 13. Qa4 {[%clk 0:02:38]}  Nb6 {[%clk 0:02:13]} 14. Qb3 {[%clk 0:02:36]}  Be6 {[%clk 0:02:05]} 15. Rfe1 {[%clk 0:02:32]}  Bf7 {[%clk 0:01:57]} 16. d5 {[%clk 0:02:21]}  Rbe8 {[%clk 0:01:49]} 17. Qc2 {[%clk 0:02:20]}  Bg6 {[%clk 0:01:47]} 18. f4 {[%clk 0:02:15]}  Ng4 {[%clk 0:01:43]} 19. Nf3 {[%clk 0:02:11]}  Ne3 {[%clk 0:01:40]} 20. Rxe3 {[%clk 0:02:10]}  Rxe3 {[%clk 0:01:39]} 21. Ng5 {[%clk 0:02:11]}  Rfe8 {[%clk 0:01:08]} 22. Ne6 {[%clk 0:02:07]}  Qf7 {[%clk 0:01:06]} 23. Qb3 {[%clk 0:02:03]}  Qf6 {[%clk 0:01:03]} 24. Bb2 {[%clk 0:01:59]}  Bf7 {[%clk 0:01:00]} 25. Qb5 {[%clk 0:01:58]}  Qe7 {[%clk 0:00:54]} 26. a4 {[%clk 0:01:47]}  Bxe6 {[%clk 0:00:52]} 27. dxe6 {[%clk 0:01:47]}  Qxe6 {[%clk 0:00:52]} 28. a5 {[%clk 0:01:48]}  Re1+ {[%clk 0:00:51]} 29. Rxe1 {[%clk 0:01:41]}  Qxe1+ {[%clk 0:00:51]} 30. Bf1 {[%clk 0:01:41]}  Qe3+ {[%clk 0:00:49]} 31. Kh1 {[%clk 0:01:41]}  Qf3+ {[%clk 0:00:42]} 32. Kg1 {[%clk 0:01:41]}  Re1 {[%clk 0:00:40]} 33. Qe8+ {[%clk 0:01:32]}  Rxe8 {[%clk 0:00:39]} 34. Bc1 {[%clk 0:01:24]}  Re1 {[%clk 0:00:39]} 35. Bd2 {[%clk 0:01:25]}  Qxf1# {[%clk 0:00:38]} 0-1


[Site "https://www.chess.com"]

[Event "Late Titled Tuesday Blitz February 8 2022"]
[White "Nepomniachtchi, Ian"]
[Black "Svane, Rasmus"]
[WhiteFideId "4168119"]
[BlackFideId "4657101"]
[WhiteElo "2740"]
[BlackElo "2645"]
[Result "1-0"]
[Round "07"]
[TimeControl "180+1"]
[Date "2022.02.08"]
[WhiteClock "0:02:02"]
[BlackClock "0:01:27"]

1. e4 {[%clk 0:03:00]}  c6 {[%clk 0:02:59]} 2. Nf3 {[%clk 0:02:57]}  d5 {[%clk 0:03:00]} 3. Nc3 {[%clk 0:02:57]}  dxe4 {[%clk 0:03:00]} 4. Nxe4 {[%clk 0:02:58]}  Nf6 {[%clk 0:03:01]} 5. Qe2 {[%clk 0:02:58]}  Nxe4 {[%clk 0:03:02]} 6. Qxe4 {[%clk 0:02:59]}  Qa5 {[%clk 0:03:02]} 7. Bc4 {[%clk 0:02:56]}  Bf5 {[%clk 0:03:02]} 8. Qf4 {[%clk 0:02:54]}  e6 {[%clk 0:03:03]} 9. O-O {[%clk 0:02:54]}  Be7 {[%clk 0:03:00]} 10. b3 {[%clk 0:02:49]}  Bf6 {[%clk 0:02:37]} 11. c3 {[%clk 0:02:48]}  O-O {[%clk 0:02:36]} 12. a4 {[%clk 0:02:48]}  Nd7 {[%clk 0:02:32]} 13. Ba3 {[%clk 0:02:44]}  Rfe8 {[%clk 0:02:30]} 14. Bb4 {[%clk 0:02:40]}  Qd8 {[%clk 0:02:29]} 15. d4 {[%clk 0:02:40]}  Nb6 {[%clk 0:02:26]} 16. Rfe1 {[%clk 0:02:37]}  Nd5 {[%clk 0:02:24]} 17. Bxd5 {[%clk 0:02:36]}  cxd5 {[%clk 0:02:23]} 18. a5 {[%clk 0:02:35]}  Rc8 {[%clk 0:02:19]} 19. Ne5 {[%clk 0:02:35]}  Be7 {[%clk 0:02:11]} 20. Bxe7 {[%clk 0:02:33]}  Rxe7 {[%clk 0:02:11]} 21. Re3 {[%clk 0:02:32]}  Rec7 {[%clk 0:02:10]} 22. Qg3 {[%clk 0:02:30]}  f6 {[%clk 0:02:02]} 23. Ng4 {[%clk 0:02:29]}  Kf7 {[%clk 0:01:45]} 24. h3 {[%clk 0:02:29]}  Rc6 {[%clk 0:01:45]} 25. Qf3 {[%clk 0:02:02]}  Qc7 {[%clk 0:01:39]} 26. c4 {[%clk 0:02:02]}  dxc4 {[%clk 0:01:31]} 27. d5 {[%clk 0:02:03]}  exd5 {[%clk 0:01:27]} 28. Qxf5 {[%clk 0:02:02]} 1-0


[Site "https://www.chess.com"]

[Event "Late Titled Tuesday Blitz February 8 2022"]
[White "Niemann, Hans Moke"]
[Black "Moroni, Luca Jr"]
[WhiteFideId "2093596"]
[BlackFideId "865834"]
[WhiteElo "2636"]
[BlackElo "2573"]
[Result "0-1"]
[Round "07"]
[TimeControl "180+1"]
[Date "2022.02.08"]
[WhiteClock "0:00:18"]
[BlackClock "0:00:05"]

1. d4 {[%clk 0:03:00]}  d6 {[%clk 0:03:00]} 2. Nc3 {[%clk 0:03:01]}  e5 {[%clk 0:02:58]} 3. f3 {[%clk 0:02:59]}  exd4 {[%clk 0:02:56]} 4. Qxd4 {[%clk 0:02:59]}  Nc6 {[%clk 0:02:56]} 5. Qf2 {[%clk 0:02:53]}  g6 {[%clk 0:02:51]} 6. e4 {[%clk 0:02:53]}  Bg7 {[%clk 0:02:51]} 7. Bc4 {[%clk 0:02:49]}  Be6 {[%clk 0:02:47]} 8. Bb3 {[%clk 0:02:46]}  Bxb3 {[%clk 0:02:39]} 9. axb3 {[%clk 0:02:47]}  Nge7 {[%clk 0:02:39]} 10. h4 {[%clk 0:02:43]}  h5 {[%clk 0:02:36]} 11. Nh3 {[%clk 0:02:43]}  Qd7 {[%clk 0:02:36]} 12. Be3 {[%clk 0:02:41]}  a6 {[%clk 0:02:35]} 13. O-O {[%clk 0:02:28]}  O-O {[%clk 0:02:34]} 14. Rad1 {[%clk 0:02:27]}  Rae8 {[%clk 0:02:32]} 15. Ng5 {[%clk 0:02:27]}  Ne5 {[%clk 0:02:30]} 16. Qd2 {[%clk 0:02:17]}  Rd8 {[%clk 0:02:17]} 17. Bd4 {[%clk 0:02:14]}  N7c6 {[%clk 0:02:13]} 18. Bf2 {[%clk 0:02:12]}  Ne7 {[%clk 0:02:11]} 19. Ne2 {[%clk 0:02:08]}  f6 {[%clk 0:01:54]} 20. f4 {[%clk 0:01:46]}  fxg5 {[%clk 0:01:39]} 21. fxe5 {[%clk 0:01:45]}  Bxe5 {[%clk 0:01:36]} 22. Qxg5 {[%clk 0:01:44]}  Qe6 {[%clk 0:01:08]} 23. Bd4 {[%clk 0:01:33]}  Rxf1+ {[%clk 0:00:53]} 24. Rxf1 {[%clk 0:01:31]}  Rf8 {[%clk 0:00:53]} 25. Bxe5 {[%clk 0:01:14]}  Rxf1+ {[%clk 0:00:51]} 26. Kxf1 {[%clk 0:01:14]}  Qxe5 {[%clk 0:00:47]} 27. Qxe5 {[%clk 0:01:15]}  dxe5 {[%clk 0:00:48]} 28. Nc1 {[%clk 0:01:15]}  b6 {[%clk 0:00:38]} 29. Nd3 {[%clk 0:01:13]}  Nc6 {[%clk 0:00:38]} 30. Kf2 {[%clk 0:01:13]}  Kf7 {[%clk 0:00:38]} 31. c3 {[%clk 0:01:13]}  Kf6 {[%clk 0:00:36]} 32. g4 {[%clk 0:01:12]}  hxg4 {[%clk 0:00:34]} 33. Kg3 {[%clk 0:01:11]}  Na5 {[%clk 0:00:35]} 34. Nc1 {[%clk 0:01:06]}  Nb7 {[%clk 0:00:33]} 35. Nd3 {[%clk 0:01:06]}  Na5 {[%clk 0:00:30]} 36. Nb4 {[%clk 0:00:54]}  Nxb3 {[%clk 0:00:26]} 37. Nd5+ {[%clk 0:00:54]}  Kg7 {[%clk 0:00:20]} 38. Nxc7 {[%clk 0:00:53]}  Nc5 {[%clk 0:00:20]} 39. Kxg4 {[%clk 0:00:52]}  a5 {[%clk 0:00:20]} 40. Kf3 {[%clk 0:00:51]}  Na4 {[%clk 0:00:20]} 41. Nd5 {[%clk 0:00:44]}  Nxb2 {[%clk 0:00:20]} 42. Nxb6 {[%clk 0:00:45]}  a4 {[%clk 0:00:20]} 43. Nd5 {[%clk 0:00:44]}  Nd1 {[%clk 0:00:16]} 44. c4 {[%clk 0:00:38]}  a3 {[%clk 0:00:15]} 45. Nb4 {[%clk 0:00:39]}  Nc3 {[%clk 0:00:14]} 46. c5 {[%clk 0:00:35]}  Kf6 {[%clk 0:00:10]} 47. Ke3 {[%clk 0:00:33]}  a2 {[%clk 0:00:07]} 48. Nc2 {[%clk 0:00:32]}  Na4 {[%clk 0:00:03]} 49. c6 {[%clk 0:00:30]}  Ke6 {[%clk 0:00:04]} 50. Kd3 {[%clk 0:00:26]}  Nc5+ {[%clk 0:00:04]} 51. Kc4 {[%clk 0:00:25]}  Nxe4 {[%clk 0:00:04]} 52. Kb5 {[%clk 0:00:25]}  Nd6+ {[%clk 0:00:03]} 53. Kc5 {[%clk 0:00:25]}  e4 {[%clk 0:00:03]} 54. Kd4 {[%clk 0:00:25]}  Kf5 {[%clk 0:00:04]} 55. Kd5 {[%clk 0:00:25]}  Nc8 {[%clk 0:00:03]} 56. c7 {[%clk 0:00:24]}  Kf4 {[%clk 0:00:03]} 57. Kd4 {[%clk 0:00:23]}  e3 {[%clk 0:00:03]} 58. Kd3 {[%clk 0:00:23]}  Kf3 {[%clk 0:00:03]} 59. Kc3 {[%clk 0:00:16]}  e2 {[%clk 0:00:03]} 60. Kb2 {[%clk 0:00:16]}  Kg3 {[%clk 0:00:03]} 61. Kxa2 {[%clk 0:00:16]}  Kxh4 {[%clk 0:00:03]} 62. Kb3 {[%clk 0:00:17]}  Kg3 {[%clk 0:00:04]} 63. Kc3 {[%clk 0:00:17]}  Kf2 {[%clk 0:00:04]} 64. Kd2 {[%clk 0:00:18]}  g5 {[%clk 0:00:05]} 65. Ne1 {[%clk 0:00:17]}  g4 {[%clk 0:00:05]} 66. Nd3+ {[%clk 0:00:18]}  Kf1 {[%clk 0:00:05]} 67. Ke3 {[%clk 0:00:18]}  g3 {[%clk 0:00:05]} 0-1


[Site "https://www.chess.com"]

[Event "Late Titled Tuesday Blitz February 8 2022"]
[White "Nikologorsky, Matfei"]
[Black "Djokic, Mihailo"]
[WhiteFideId "24102474"]
[BlackFideId "976440"]
[WhiteElo "2231"]
[BlackElo "2008"]
[Result "0-1"]
[Round "07"]
[TimeControl "180+1"]
[Date "2022.02.09"]
[WhiteClock "0:00:07"]
[BlackClock "0:02:00"]

1. e4 {[%clk 0:03:00]}  c5 {[%clk 0:02:58]} 2. Nf3 {[%clk 0:02:59]}  d6 {[%clk 0:02:58]} 3. d4 {[%clk 0:02:59]}  cxd4 {[%clk 0:02:58]} 4. Nxd4 {[%clk 0:03:00]}  Nf6 {[%clk 0:02:58]} 5. Nc3 {[%clk 0:03:01]}  g6 {[%clk 0:02:58]} 6. Be3 {[%clk 0:03:00]}  Bg7 {[%clk 0:02:58]} 7. f3 {[%clk 0:02:59]}  O-O {[%clk 0:02:58]} 8. Qd2 {[%clk 0:03:00]}  Nc6 {[%clk 0:02:58]} 9. O-O-O {[%clk 0:03:00]}  Bd7 {[%clk 0:02:58]} 10. Kb1 {[%clk 0:02:56]}  Rc8 {[%clk 0:02:59]} 11. g4 {[%clk 0:02:49]}  Ne5 {[%clk 0:02:59]} 12. h4 {[%clk 0:02:46]}  Qa5 {[%clk 0:03:00]} 13. h5 {[%clk 0:02:23]}  Nxf3 {[%clk 0:02:58]} 14. Nxf3 {[%clk 0:02:17]}  Rxc3 {[%clk 0:02:57]} 15. Qxc3 {[%clk 0:02:07]}  Qxc3 {[%clk 0:02:56]} 16. bxc3 {[%clk 0:02:08]}  Bxg4 {[%clk 0:02:56]} 17. Bg2 {[%clk 0:01:52]}  Nxe4 {[%clk 0:02:56]} 18. Bd4 {[%clk 0:01:26]}  e5 {[%clk 0:02:51]} 19. Rhe1 {[%clk 0:00:58]}  f5 {[%clk 0:02:37]} 20. hxg6 {[%clk 0:00:17]}  hxg6 {[%clk 0:02:36]} 21. Kb2 {[%clk 0:00:16]}  exd4 {[%clk 0:02:35]} 22. cxd4 {[%clk 0:00:17]}  Rc8 {[%clk 0:02:32]} 23. Rd3 {[%clk 0:00:14]}  a6 {[%clk 0:02:24]} 24. Kb3 {[%clk 0:00:10]}  b5 {[%clk 0:02:22]} 25. Nh2 {[%clk 0:00:06]}  Bh5 {[%clk 0:02:10]} 26. Bxe4 {[%clk 0:00:05]}  fxe4 {[%clk 0:02:10]} 27. Rxe4 {[%clk 0:00:06]}  g5 {[%clk 0:02:09]} 28. d5 {[%clk 0:00:06]}  Bg6 {[%clk 0:02:09]} 29. Re7 {[%clk 0:00:02]}  Bxd3 {[%clk 0:02:09]} 30. cxd3 {[%clk 0:00:03]}  Rc3+ {[%clk 0:02:09]} 31. Kb4 {[%clk 0:00:04]}  Rxd3 {[%clk 0:02:09]} 32. Ng4 {[%clk 0:00:04]}  Rd4+ {[%clk 0:02:09]} 33. Ka5 {[%clk 0:00:05]}  Rxg4 {[%clk 0:02:10]} 34. Kb6 {[%clk 0:00:04]}  Rc4 {[%clk 0:02:04]} 35. Rd7 {[%clk 0:00:04]}  Be5 {[%clk 0:02:04]} 36. Kxa6 {[%clk 0:00:03]}  b4 {[%clk 0:02:04]} 37. Kb5 {[%clk 0:00:04]}  Rc5+ {[%clk 0:02:04]} 38. Kxb4 {[%clk 0:00:05]}  Rxd5 {[%clk 0:02:04]} 39. a4 {[%clk 0:00:05]}  g4 {[%clk 0:02:04]} 40. a5 {[%clk 0:00:06]}  g3 {[%clk 0:02:05]} 41. a6 {[%clk 0:00:06]}  Bd4 {[%clk 0:02:03]} 42. Kc4 {[%clk 0:00:05]}  g2 {[%clk 0:02:03]} 43. Kxd5 {[%clk 0:00:05]}  g1=Q {[%clk 0:02:03]} 44. a7 {[%clk 0:00:06]}  Bxa7 {[%clk 0:02:03]} 45. Kxd6 {[%clk 0:00:06]}  Qc5+ {[%clk 0:02:02]} 46. Ke6 {[%clk 0:00:06]}  Qc6+ {[%clk 0:02:02]} 47. Rd6 {[%clk 0:00:07]}  Qe4+ {[%clk 0:02:02]} 48. Kd7 {[%clk 0:00:07]}  Bc5 {[%clk 0:02:02]} 49. Re6 {[%clk 0:00:07]}  Qd5+ {[%clk 0:02:02]} 50. Kc7 {[%clk 0:00:06]}  Qxe6 {[%clk 0:02:02]} 51. Kd8 {[%clk 0:00:06]}  Qd6+ {[%clk 0:02:01]} 52. Kc8 {[%clk 0:00:06]}  Qe7 {[%clk 0:02:00]} 53. Kb8 {[%clk 0:00:06]}  Bb6 {[%clk 0:02:00]} 54. Ka8 {[%clk 0:00:07]}  Qa7# {[%clk 0:02:00]} 0-1


[Site "https://www.chess.com"]

[Event "Late Titled Tuesday Blitz February 8 2022"]
[White "Noboa Silva, Kevin"]
[Black "Shahade, Gregory"]
[WhiteFideId "3618471"]
[BlackFideId "2009064"]
[WhiteElo "2161"]
[BlackElo "2664"]
[Result "0-1"]
[Round "07"]
[TimeControl "180+1"]
[Date "2022.02.09"]
[WhiteClock "0:00:02"]
[BlackClock "0:00:13"]

1. d4 {[%clk 0:03:00]}  Nf6 {[%clk 0:02:59]} 2. c4 {[%clk 0:02:59]}  g6 {[%clk 0:02:59]} 3. Nc3 {[%clk 0:02:56]}  d5 {[%clk 0:02:59]} 4. Nf3 {[%clk 0:02:53]}  Bg7 {[%clk 0:02:59]} 5. Bf4 {[%clk 0:02:53]}  c5 {[%clk 0:02:31]} 6. dxc5 {[%clk 0:02:50]}  Qa5 {[%clk 0:02:23]} 7. cxd5 {[%clk 0:02:01]}  Nxd5 {[%clk 0:02:10]} 8. Qxd5 {[%clk 0:01:59]}  Bxc3+ {[%clk 0:02:10]} 9. Bd2 {[%clk 0:01:59]}  Bxd2+ {[%clk 0:02:04]} 10. Qxd2 {[%clk 0:01:57]}  Qxc5 {[%clk 0:01:35]} 11. Rc1 {[%clk 0:01:52]}  Qf5 {[%clk 0:01:35]} 12. Nd4 {[%clk 0:01:25]}  Qd7 {[%clk 0:01:35]} 13. e3 {[%clk 0:01:23]}  O-O {[%clk 0:01:29]} 14. Bb5 {[%clk 0:01:23]}  Qd5 {[%clk 0:01:26]} 15. O-O {[%clk 0:01:14]}  e5 {[%clk 0:01:15]} 16. Bc4 {[%clk 0:01:08]}  Qd8 {[%clk 0:01:10]} 17. Nf3 {[%clk 0:01:02]}  Qxd2 {[%clk 0:01:11]} 18. Nxd2 {[%clk 0:01:02]}  Nc6 {[%clk 0:01:11]} 19. Ne4 {[%clk 0:00:59]}  Rd8 {[%clk 0:01:05]} 20. Rfd1 {[%clk 0:00:56]}  Kg7 {[%clk 0:00:56]} 21. Rxd8 {[%clk 0:00:49]}  Nxd8 {[%clk 0:00:57]} 22. Bb3 {[%clk 0:00:43]}  Be6 {[%clk 0:00:51]} 23. Bxe6 {[%clk 0:00:33]}  Nxe6 {[%clk 0:00:50]} 24. Nd6 {[%clk 0:00:33]}  Rd8 {[%clk 0:00:45]} 25. Nxb7 {[%clk 0:00:25]}  Rb8 {[%clk 0:00:45]} 26. Nd6 {[%clk 0:00:19]}  Rxb2 {[%clk 0:00:42]} 27. a4 {[%clk 0:00:19]}  Ra2 {[%clk 0:00:41]} 28. Nc4 {[%clk 0:00:18]}  f6 {[%clk 0:00:35]} 29. a5 {[%clk 0:00:17]}  Ra4 {[%clk 0:00:34]} 30. g3 {[%clk 0:00:17]}  h5 {[%clk 0:00:33]} 31. h4 {[%clk 0:00:16]}  g5 {[%clk 0:00:23]} 32. hxg5 {[%clk 0:00:16]}  Nxg5 {[%clk 0:00:24]} 33. Kg2 {[%clk 0:00:16]}  e4 {[%clk 0:00:24]} 34. Kf1 {[%clk 0:00:08]}  Kg6 {[%clk 0:00:22]} 35. Ke1 {[%clk 0:00:06]}  Nf3+ {[%clk 0:00:21]} 36. Kf1 {[%clk 0:00:06]}  Rxc4 {[%clk 0:00:20]} 37. Rxc4 {[%clk 0:00:05]}  Nd2+ {[%clk 0:00:20]} 38. Ke2 {[%clk 0:00:06]}  Nxc4 {[%clk 0:00:20]} 39. a6 {[%clk 0:00:07]}  Kf5 {[%clk 0:00:19]} 40. Kd1 {[%clk 0:00:07]}  Kg4 {[%clk 0:00:19]} 41. Kc2 {[%clk 0:00:07]}  Kf3 {[%clk 0:00:19]} 42. Kc3 {[%clk 0:00:08]}  Ne5 {[%clk 0:00:17]} 43. Kd4 {[%clk 0:00:08]}  Nd3 {[%clk 0:00:14]} 44. Kd5 {[%clk 0:00:08]}  Nxf2 {[%clk 0:00:13]} 45. Kc6 {[%clk 0:00:08]}  Kxg3 {[%clk 0:00:13]} 46. Kb7 {[%clk 0:00:08]}  h4 {[%clk 0:00:14]} 47. Kxa7 {[%clk 0:00:09]}  h3 {[%clk 0:00:14]} 48. Kb6 {[%clk 0:00:09]}  h2 {[%clk 0:00:15]} 49. a7 {[%clk 0:00:10]}  h1=Q {[%clk 0:00:15]} 50. a8=Q {[%clk 0:00:11]}  Qb1+ {[%clk 0:00:15]} 51. Kc7 {[%clk 0:00:10]}  Qc2+ {[%clk 0:00:15]} 52. Kd6 {[%clk 0:00:10]}  Qd3+ {[%clk 0:00:15]} 53. Ke7 {[%clk 0:00:09]}  Qxe3 {[%clk 0:00:15]} 54. Kxf6 {[%clk 0:00:09]}  Qf4+ {[%clk 0:00:15]} 55. Ke6 {[%clk 0:00:08]}  e3 {[%clk 0:00:15]} 56. Qa3 {[%clk 0:00:08]}  Qf3 {[%clk 0:00:14]} 57. Qd6+ {[%clk 0:00:04]}  Kg2 {[%clk 0:00:14]} 58. Qd8 {[%clk 0:00:03]}  e2 {[%clk 0:00:14]} 59. Qg8+ {[%clk 0:00:03]}  Kf1 {[%clk 0:00:14]} 60. Kd6 {[%clk 0:00:02]}  e1=Q {[%clk 0:00:14]} 61. Qc4+ {[%clk 0:00:03]}  Qee2 {[%clk 0:00:14]} 62. Qc1+ {[%clk 0:00:03]}  Qd1+ {[%clk 0:00:14]} 63. Ke5 {[%clk 0:00:02]}  Qxc1 {[%clk 0:00:12]} 64. Kd4 {[%clk 0:00:02]}  Qe1 {[%clk 0:00:13]} 65. Kc4 {[%clk 0:00:02]}  Qc1+ {[%clk 0:00:13]} 66. Kd4 {[%clk 0:00:01]}  Qcd1+ {[%clk 0:00:13]} 67. Kc4 {[%clk 0:00:01]}  Qfd3+ {[%clk 0:00:13]} 68. Kb4 {[%clk 0:00:02]}  Q3b3+ {[%clk 0:00:13]} 69. Ka5 {[%clk 0:00:02]}  Qa1# {[%clk 0:00:13]} 0-1


[Site "https://www.chess.com"]

[Event "Late Titled Tuesday Blitz February 8 2022"]
[White "Novikov, Evgenij"]
[Black "Khripachenko, Alexander"]
[WhiteFideId "4125380"]
[BlackFideId "54184975"]
[WhiteElo "2242"]
[BlackElo "2177"]
[Result "1-0"]
[Round "07"]
[TimeControl "180+1"]
[Date "2022.02.09"]
[WhiteClock "0:01:20"]
[BlackClock "0:01:42"]

1. d4 {[%clk 0:03:00]}  Nf6 {[%clk 0:02:59]} 2. c4 {[%clk 0:02:59]}  g6 {[%clk 0:02:59]} 3. Nc3 {[%clk 0:02:59]}  d5 {[%clk 0:02:59]} 4. Nf3 {[%clk 0:02:54]}  Bg7 {[%clk 0:02:59]} 5. Bg5 {[%clk 0:02:54]}  dxc4 {[%clk 0:02:59]} 6. e3 {[%clk 0:02:52]}  Be6 {[%clk 0:02:58]} 7. Nd2 {[%clk 0:02:33]}  Nd5 {[%clk 0:02:52]} 8. Bxc4 {[%clk 0:02:27]}  Nxc3 {[%clk 0:02:52]} 9. bxc3 {[%clk 0:02:27]}  Bxc4 {[%clk 0:02:52]} 10. Nxc4 {[%clk 0:02:28]}  Qd5 {[%clk 0:02:53]} 11. Qf3 {[%clk 0:01:27]}  Qxd4 {[%clk 0:01:42]} 12. exd4 {[%clk 0:01:20]} 1-0


[Site "https://www.chess.com"]

[Event "Late Titled Tuesday Blitz February 8 2022"]
[White "Okike, David"]
[Black "Einarsson, Halldor Gretar"]
[WhiteFideId "8500134"]
[BlackFideId "2300150"]
[WhiteElo "2232"]
[BlackElo "2114"]
[Result "1-0"]
[Round "07"]
[TimeControl "180+1"]
[Date "2022.02.09"]
[WhiteClock "0:01:01"]
[BlackClock "0:00:11"]

1. e4 {[%clk 0:03:00]}  e5 {[%clk 0:02:48]} 2. Nf3 {[%clk 0:03:00]}  Nc6 {[%clk 0:02:47]} 3. Bb5 {[%clk 0:02:57]}  Nf6 {[%clk 0:02:45]} 4. d3 {[%clk 0:02:57]}  Bc5 {[%clk 0:02:43]} 5. c3 {[%clk 0:02:57]}  d6 {[%clk 0:02:32]} 6. O-O {[%clk 0:02:54]}  O-O {[%clk 0:02:30]} 7. h3 {[%clk 0:02:53]}  h6 {[%clk 0:02:27]} 8. Re1 {[%clk 0:02:51]}  a6 {[%clk 0:01:56]} 9. Ba4 {[%clk 0:02:51]}  b5 {[%clk 0:01:54]} 10. Bc2 {[%clk 0:02:50]}  Bb6 {[%clk 0:01:47]} 11. a4 {[%clk 0:02:49]}  Be6 {[%clk 0:01:40]} 12. Be3 {[%clk 0:02:45]}  Bxe3 {[%clk 0:01:34]} 13. Rxe3 {[%clk 0:02:45]}  b4 {[%clk 0:01:34]} 14. Nbd2 {[%clk 0:02:42]}  bxc3 {[%clk 0:01:31]} 15. bxc3 {[%clk 0:02:42]}  Qd7 {[%clk 0:01:19]} 16. a5 {[%clk 0:02:40]}  g6 {[%clk 0:01:12]} 17. Ba4 {[%clk 0:02:39]}  Qe8 {[%clk 0:01:02]} 18. d4 {[%clk 0:02:37]}  exd4 {[%clk 0:00:43]} 19. cxd4 {[%clk 0:02:34]}  Bd7 {[%clk 0:00:43]} 20. Bb3 {[%clk 0:02:32]}  Nh5 {[%clk 0:00:36]} 21. e5 {[%clk 0:02:23]}  dxe5 {[%clk 0:00:33]} 22. dxe5 {[%clk 0:02:23]}  Nf4 {[%clk 0:00:32]} 23. Qc2 {[%clk 0:02:17]}  Be6 {[%clk 0:00:31]} 24. Ba4 {[%clk 0:02:17]}  Bd7 {[%clk 0:00:30]} 25. Qc4 {[%clk 0:02:00]}  Ne6 {[%clk 0:00:25]} 26. Rd3 {[%clk 0:01:57]}  Ned8 {[%clk 0:00:24]} 27. Ne4 {[%clk 0:01:37]}  Qe6 {[%clk 0:00:21]} 28. Nf6+ {[%clk 0:01:33]}  Kg7 {[%clk 0:00:21]} 29. Qc3 {[%clk 0:01:26]}  Be8 {[%clk 0:00:20]} 30. Rc1 {[%clk 0:01:21]}  Nxe5 {[%clk 0:00:19]} 31. Nxe8+ {[%clk 0:01:11]}  Rxe8 {[%clk 0:00:15]} 32. Bxe8 {[%clk 0:01:06]}  f6 {[%clk 0:00:14]} 33. Nxe5 {[%clk 0:01:05]}  fxe5 {[%clk 0:00:13]} 34. Ba4 {[%clk 0:01:03]}  Rc8 {[%clk 0:00:12]} 35. Bb3 {[%clk 0:01:02]}  Qf6 {[%clk 0:00:11]} 36. Rf3 {[%clk 0:01:01]}  Qe7 {[%clk 0:00:11]} 37. Re1 {[%clk 0:01:01]} 1-0


[Site "https://www.chess.com"]

[Event "Late Titled Tuesday Blitz February 8 2022"]
[White "Oro, Luis"]
[Black "Gracia Alvarez, Gerardo Antonio"]
[WhiteFideId "104094"]
[BlackFideId "5109124"]
[WhiteElo "2299"]
[BlackElo "2139"]
[Result "0-1"]
[Round "07"]
[TimeControl "180+1"]
[Date "2022.02.09"]
[WhiteClock "0:00:03"]
[BlackClock "0:00:35"]

1. e4 {[%clk 0:03:00]}  d6 {[%clk 0:03:00]} 2. d4 {[%clk 0:02:59]}  Nf6 {[%clk 0:03:00]} 3. Nc3 {[%clk 0:03:00]}  e5 {[%clk 0:03:00]} 4. dxe5 {[%clk 0:03:00]}  dxe5 {[%clk 0:03:00]} 5. Qxd8+ {[%clk 0:03:01]}  Kxd8 {[%clk 0:03:00]} 6. Bg5 {[%clk 0:03:01]}  Be6 {[%clk 0:02:57]} 7. O-O-O+ {[%clk 0:03:01]}  Nd7 {[%clk 0:02:56]} 8. Nf3 {[%clk 0:02:58]}  Kc8 {[%clk 0:02:54]} 9. h3 {[%clk 0:02:52]}  c6 {[%clk 0:02:42]} 10. a3 {[%clk 0:02:46]}  h6 {[%clk 0:02:11]} 11. Bxf6 {[%clk 0:02:44]}  gxf6 {[%clk 0:02:12]} 12. Be2 {[%clk 0:02:41]}  Bc5 {[%clk 0:02:08]} 13. Rhf1 {[%clk 0:02:32]}  b5 {[%clk 0:02:08]} 14. Nh4 {[%clk 0:02:19]}  Rg8 {[%clk 0:02:07]} 15. g4 {[%clk 0:02:14]}  h5 {[%clk 0:01:58]} 16. gxh5 {[%clk 0:02:05]}  Bxh3 {[%clk 0:01:57]} 17. Rh1 {[%clk 0:02:03]}  Be6 {[%clk 0:01:55]} 18. Rdf1 {[%clk 0:02:01]}  Kc7 {[%clk 0:01:49]} 19. Nd1 {[%clk 0:01:51]}  Bf8 {[%clk 0:01:48]} 20. c3 {[%clk 0:01:27]}  Bh6+ {[%clk 0:01:47]} 21. Kc2 {[%clk 0:01:26]}  Nc5 {[%clk 0:01:45]} 22. Bf3 {[%clk 0:01:18]}  Rad8 {[%clk 0:01:41]} 23. b4 {[%clk 0:00:48]}  Nd3 {[%clk 0:01:18]} 24. Ne3 {[%clk 0:00:37]}  Nxf2 {[%clk 0:01:15]} 25. Nef5 {[%clk 0:00:33]}  Rd2+ {[%clk 0:01:07]} 26. Kb1 {[%clk 0:00:30]}  Nxh1 {[%clk 0:00:58]} 27. Nxh6 {[%clk 0:00:25]}  Rh8 {[%clk 0:00:58]} 28. Nxf7 {[%clk 0:00:20]}  Bxf7 {[%clk 0:00:56]} 29. Rxh1 {[%clk 0:00:20]}  Bxh5 {[%clk 0:00:44]} 30. Rf1 {[%clk 0:00:02]}  Bxf3 {[%clk 0:00:39]} 31. Nxf3 {[%clk 0:00:03]}  Re2 {[%clk 0:00:35]} 0-1


[Site "https://www.chess.com"]